[Event "Titled Tuesday Blitz February 14 Early 2023"]
[White "Hajiyev, Kanan"]
[Black "Jakubowski, Krzysztof"]
[WhiteFideId "13404148"]
[BlackFideId "1112848"]
[WhiteElo "2197"]
[BlackElo "2486"]
[Result "1-0"]
[Round "09"]
[TimeControl "180+2"]
[Date "2023.02.14"]
[WhiteClock "0:00:08"]
[BlackClock "0:00:30"]

1. d4 {[%clk 0:02:43]}  Nf6 {[%clk 0:02:58]} 2. Nf3 {[%clk 0:02:42]}  b6 {[%clk 0:02:56]} 3. g3 {[%clk 0:02:42]}  Bb7 {[%clk 0:02:56]} 4. Bg2 {[%clk 0:02:42]}  c5 {[%clk 0:02:56]} 5. Nh4 {[%clk 0:02:43]}  Bxg2 {[%clk 0:02:54]} 6. Nxg2 {[%clk 0:02:43]}  cxd4 {[%clk 0:02:53]} 7. Qxd4 {[%clk 0:02:43]}  Nc6 {[%clk 0:02:52]} 8. Qh4 {[%clk 0:02:01]}  e6 {[%clk 0:02:49]} 9. O-O {[%clk 0:01:59]}  Be7 {[%clk 0:02:49]} 10. c4 {[%clk 0:01:58]}  O-O {[%clk 0:02:48]} 11. b3 {[%clk 0:01:58]}  Rc8 {[%clk 0:02:47]} 12. Bb2 {[%clk 0:01:58]}  d5 {[%clk 0:02:44]} 13. Rd1 {[%clk 0:01:50]}  Qc7 {[%clk 0:02:30]} 14. Qf4 {[%clk 0:01:26]}  dxc4 {[%clk 0:02:26]} 15. Qxc4 {[%clk 0:01:23]}  Qb7 {[%clk 0:02:18]} 16. Nc3 {[%clk 0:00:48]}  Ne5 {[%clk 0:02:17]} 17. Qd4 {[%clk 0:00:41]}  Neg4 {[%clk 0:02:15]} 18. Qf4 {[%clk 0:00:26]}  Bc5 {[%clk 0:02:12]} 19. e3 {[%clk 0:00:20]}  e5 {[%clk 0:02:12]} 20. Qf5 {[%clk 0:00:17]}  g6 {[%clk 0:02:12]} 21. Qd3 {[%clk 0:00:16]}  Qf3 {[%clk 0:02:13]} 22. Qe2 {[%clk 0:00:14]}  Qf5 {[%clk 0:02:07]} 23. Nh4 {[%clk 0:00:13]}  Qh5 {[%clk 0:02:05]} 24. h3 {[%clk 0:00:13]}  Be7 {[%clk 0:01:12]} 25. hxg4 {[%clk 0:00:11]}  Nxg4 {[%clk 0:01:13]} 26. Nd5 {[%clk 0:00:03]}  Bxh4 {[%clk 0:01:09]} 27. gxh4 {[%clk 0:00:04]}  Qxh4 {[%clk 0:01:08]} 28. f3 {[%clk 0:00:05]}  Qg3+ {[%clk 0:01:04]} 29. Qg2 {[%clk 0:00:05]}  Qxg2+ {[%clk 0:01:04]} 30. Kxg2 {[%clk 0:00:06]}  Rc2+ {[%clk 0:01:04]} 31. Kg3 {[%clk 0:00:06]}  Rxb2 {[%clk 0:00:53]} 32. fxg4 {[%clk 0:00:06]}  Kg7 {[%clk 0:00:52]} 33. g5 {[%clk 0:00:05]}  h6 {[%clk 0:00:51]} 34. gxh6+ {[%clk 0:00:05]}  Kxh6 {[%clk 0:00:51]} 35. e4 {[%clk 0:00:05]}  Rc8 {[%clk 0:00:49]} 36. Rh1+ {[%clk 0:00:04]}  Kg7 {[%clk 0:00:49]} 37. Rh2 {[%clk 0:00:02]}  Rcc2 {[%clk 0:00:47]} 38. Rxc2 {[%clk 0:00:02]}  Rxc2 {[%clk 0:00:48]} 39. a4 {[%clk 0:00:03]}  a5 {[%clk 0:00:47]} 40. b4 {[%clk 0:00:03]}  Rc4 {[%clk 0:00:43]} 41. b5 {[%clk 0:00:03]}  Rxe4 {[%clk 0:00:43]} 42. Nxb6 {[%clk 0:00:04]}  f5 {[%clk 0:00:41]} 43. Rb1 {[%clk 0:00:05]}  f4+ {[%clk 0:00:34]} 44. Kf3 {[%clk 0:00:04]}  Re3+ {[%clk 0:00:34]} 45. Kf2 {[%clk 0:00:05]}  g5 {[%clk 0:00:32]} 46. Nc4 {[%clk 0:00:06]}  Re4 {[%clk 0:00:31]} 47. Nd6 {[%clk 0:00:07]}  Rxa4 {[%clk 0:00:30]} 48. b6 {[%clk 0:00:07]}  g4 {[%clk 0:00:29]} 49. b7 {[%clk 0:00:07]}  Ra2+ {[%clk 0:00:30]} 50. Kf1 {[%clk 0:00:07]}  g3 {[%clk 0:00:29]} 51. b8=Q {[%clk 0:00:08]}  f3 {[%clk 0:00:30]} 52. Nf5+ {[%clk 0:00:07]}  Kg6 {[%clk 0:00:30]} 53. Nxg3 {[%clk 0:00:08]} 1-0


[Site "https://www.chess.com"]

[Event "Titled Tuesday Blitz February 14 Early 2023"]
[White "Womacka, Mathias"]
[Black "Danielyan, Vahe"]
[WhiteFideId "4611390"]
[BlackFideId "13304828"]
[WhiteElo "2396"]
[BlackElo "2346"]
[Result "1-0"]
[Round "09"]
[TimeControl "180+2"]
[Date "2023.02.14"]
[WhiteClock "0:00:05"]
[BlackClock "0:00:04"]

1. e4 {[%clk 0:03:00]}  c5 {[%clk 0:02:55]} 2. Nf3 {[%clk 0:02:55]}  d6 {[%clk 0:02:54]} 3. d4 {[%clk 0:02:55]}  cxd4 {[%clk 0:02:51]} 4. Nxd4 {[%clk 0:02:56]}  Nf6 {[%clk 0:02:52]} 5. Nc3 {[%clk 0:02:56]}  a6 {[%clk 0:02:52]} 6. Be2 {[%clk 0:02:56]}  e6 {[%clk 0:02:41]} 7. O-O {[%clk 0:02:55]}  Be7 {[%clk 0:02:41]} 8. f4 {[%clk 0:02:53]}  O-O {[%clk 0:02:42]} 9. Kh1 {[%clk 0:02:53]}  Nc6 {[%clk 0:02:42]} 10. Be3 {[%clk 0:02:52]}  e5 {[%clk 0:02:41]} 11. fxe5 {[%clk 0:02:43]}  Nxe5 {[%clk 0:02:41]} 12. Nf5 {[%clk 0:02:31]}  Bxf5 {[%clk 0:02:41]} 13. Rxf5 {[%clk 0:02:31]}  Rc8 {[%clk 0:02:41]} 14. Bd4 {[%clk 0:02:27]}  Ng6 {[%clk 0:02:31]} 15. Bd3 {[%clk 0:02:15]}  Nd7 {[%clk 0:02:27]} 16. Nd5 {[%clk 0:02:00]}  Nde5 {[%clk 0:02:22]} 17. Qh5 {[%clk 0:01:35]}  Nxd3 {[%clk 0:02:13]} 18. cxd3 {[%clk 0:01:36]}  Rc2 {[%clk 0:02:13]} 19. Rf3 {[%clk 0:01:30]}  Bh4 {[%clk 0:01:39]} 20. Ne3 {[%clk 0:01:17]}  Rd2 {[%clk 0:01:31]} 21. Nf5 {[%clk 0:01:13]}  Qg5 {[%clk 0:01:14]} 22. Qxg5 {[%clk 0:01:12]}  Bxg5 {[%clk 0:01:15]} 23. Bxg7 {[%clk 0:01:10]}  Rc8 {[%clk 0:01:06]} 24. Bc3 {[%clk 0:01:08]}  Re2 {[%clk 0:00:47]} 25. Nd4 {[%clk 0:01:06]}  Re3 {[%clk 0:00:40]} 26. Rxe3 {[%clk 0:01:03]}  Bxe3 {[%clk 0:00:41]} 27. Nf5 {[%clk 0:01:02]}  Bf4 {[%clk 0:00:38]} 28. g3 {[%clk 0:00:49]}  Be5 {[%clk 0:00:36]} 29. d4 {[%clk 0:00:49]}  Bf6 {[%clk 0:00:33]} 30. Nxd6 {[%clk 0:00:49]}  Rc6 {[%clk 0:00:24]} 31. Nxb7 {[%clk 0:00:44]}  Be7 {[%clk 0:00:20]} 32. Rd1 {[%clk 0:00:34]}  Rb6 {[%clk 0:00:17]} 33. Nc5 {[%clk 0:00:33]}  h5 {[%clk 0:00:16]} 34. Nd7 {[%clk 0:00:24]}  Rd6 {[%clk 0:00:15]} 35. Nc5 {[%clk 0:00:22]}  Rb6 {[%clk 0:00:15]} 36. Kg2 {[%clk 0:00:20]}  h4 {[%clk 0:00:15]} 37. Kf3 {[%clk 0:00:20]}  hxg3 {[%clk 0:00:14]} 38. hxg3 {[%clk 0:00:21]}  a5 {[%clk 0:00:11]} 39. b3 {[%clk 0:00:18]}  Ne5+ {[%clk 0:00:10]} 40. dxe5 {[%clk 0:00:17]}  Bxc5 {[%clk 0:00:10]} 41. Rd5 {[%clk 0:00:17]}  Be7 {[%clk 0:00:10]} 42. Rxa5 {[%clk 0:00:16]}  Rc6 {[%clk 0:00:10]} 43. Bd4 {[%clk 0:00:14]}  Rc2 {[%clk 0:00:11]} 44. Ra7 {[%clk 0:00:13]}  Bg5 {[%clk 0:00:10]} 45. Kg4 {[%clk 0:00:12]}  Bc1 {[%clk 0:00:10]} 46. a4 {[%clk 0:00:10]}  Kh7 {[%clk 0:00:05]} 47. Rxf7+ {[%clk 0:00:08]}  Kg6 {[%clk 0:00:06]} 48. Rf6+ {[%clk 0:00:08]}  Kh7 {[%clk 0:00:06]} 49. a5 {[%clk 0:00:09]}  Ra2 {[%clk 0:00:06]} 50. a6 {[%clk 0:00:08]}  Bd2 {[%clk 0:00:04]} 51. a7 {[%clk 0:00:08]}  Be1 {[%clk 0:00:03]} 52. Rf8 {[%clk 0:00:08]}  Rg2 {[%clk 0:00:03]} 53. a8=Q {[%clk 0:00:06]}  Rxg3+ {[%clk 0:00:04]} 54. Kf4 {[%clk 0:00:06]}  Rg8 {[%clk 0:00:04]} 55. Rxg8 {[%clk 0:00:05]} 1-0


[Site "https://www.chess.com"]

[Event "Titled Tuesday Blitz February 14 Early 2023"]
[White "Sowul, Bartosz"]
[Black "Al-Tarboush, Ward"]
[WhiteFideId "1137590"]
[BlackFideId "7601450"]
[WhiteElo "2269"]
[BlackElo "2256"]
[Result "0-1"]
[Round "09"]
[TimeControl "180+2"]
[Date "2023.02.14"]
[WhiteClock "0:00:03"]
[BlackClock "0:00:12"]

1. e4 {[%clk 0:03:00]}  c5 {[%clk 0:02:59]} 2. Nc3 {[%clk 0:03:00]}  Nc6 {[%clk 0:02:59]} 3. Bb5 {[%clk 0:03:00]}  e6 {[%clk 0:02:59]} 4. Nf3 {[%clk 0:02:53]}  Nd4 {[%clk 0:02:49]} 5. O-O {[%clk 0:02:49]}  Nxb5 {[%clk 0:02:48]} 6. Nxb5 {[%clk 0:02:49]}  a6 {[%clk 0:02:47]} 7. Nc3 {[%clk 0:02:49]}  b5 {[%clk 0:02:48]} 8. d4 {[%clk 0:02:49]}  cxd4 {[%clk 0:02:47]} 9. Qxd4 {[%clk 0:02:49]}  Ne7 {[%clk 0:02:45]} 10. Bf4 {[%clk 0:02:49]}  Nc6 {[%clk 0:02:45]} 11. Qd2 {[%clk 0:02:49]}  Bb7 {[%clk 0:02:43]} 12. a4 {[%clk 0:02:40]}  b4 {[%clk 0:02:42]} 13. Nd5 {[%clk 0:02:40]}  exd5 {[%clk 0:02:41]} 14. exd5 {[%clk 0:02:38]}  Be7 {[%clk 0:02:32]} 15. dxc6 {[%clk 0:01:57]}  dxc6 {[%clk 0:02:33]} 16. Qe3 {[%clk 0:01:55]}  O-O {[%clk 0:02:32]} 17. Rad1 {[%clk 0:01:54]}  Qe8 {[%clk 0:02:29]} 18. Rfe1 {[%clk 0:01:52]}  Bf6 {[%clk 0:02:29]} 19. Qb6 {[%clk 0:01:40]}  Qc8 {[%clk 0:02:01]} 20. Bd6 {[%clk 0:01:28]}  Rd8 {[%clk 0:01:55]} 21. Bxb4 {[%clk 0:01:13]}  c5 {[%clk 0:01:34]} 22. Rxd8+ {[%clk 0:01:02]}  Qxd8 {[%clk 0:01:34]} 23. Bxc5 {[%clk 0:00:32]}  Qd5 {[%clk 0:01:23]} 24. Bd4 {[%clk 0:00:22]}  Bg5 {[%clk 0:01:12]} 25. h4 {[%clk 0:00:19]}  Bf4 {[%clk 0:01:09]} 26. c4 {[%clk 0:00:16]}  Qd7 {[%clk 0:01:04]} 27. a5 {[%clk 0:00:14]}  h6 {[%clk 0:01:02]} 28. Be3 {[%clk 0:00:12]}  Bc7 {[%clk 0:00:42]} 29. Qd4 {[%clk 0:00:10]}  Qf5 {[%clk 0:00:40]} 30. Bd2 {[%clk 0:00:07]}  Rd8 {[%clk 0:00:38]} 31. Qe3 {[%clk 0:00:07]}  Bxf3 {[%clk 0:00:29]} 32. gxf3 {[%clk 0:00:07]}  Qh3 {[%clk 0:00:24]} 33. f4 {[%clk 0:00:07]}  Qg4+ {[%clk 0:00:23]} 34. Kf1 {[%clk 0:00:06]}  Qxh4 {[%clk 0:00:21]} 35. Bc3 {[%clk 0:00:06]}  Qh1+ {[%clk 0:00:19]} 36. Ke2 {[%clk 0:00:06]}  Qh5+ {[%clk 0:00:20]} 37. Kf1 {[%clk 0:00:06]}  f6 {[%clk 0:00:17]} 38. Qg3 {[%clk 0:00:05]}  Qh1+ {[%clk 0:00:16]} 39. Ke2 {[%clk 0:00:05]}  Re8+ {[%clk 0:00:15]} 40. Kd3 {[%clk 0:00:05]}  Rxe1 {[%clk 0:00:12]} 41. Bxf6 {[%clk 0:00:04]}  Qe4+ {[%clk 0:00:11]} 42. Kc3 {[%clk 0:00:03]}  Rc1+ {[%clk 0:00:11]} 43. Kb3 {[%clk 0:00:03]}  Qxc4+ {[%clk 0:00:11]} 44. Ka3 {[%clk 0:00:03]}  Ra1# {[%clk 0:00:12]} 0-1


[Site "https://www.chess.com"]

[Event "Titled Tuesday Blitz February 14 Early 2023"]
[White "Enkhtuul, Altan-Ulzii"]
[Black "Golubev, Mikhail"]
[WhiteFideId "4901444"]
[BlackFideId "14100983"]
[WhiteElo "2254"]
[BlackElo "2461"]
[Result "0-1"]
[Round "09"]
[TimeControl "180+2"]
[Date "2023.02.14"]
[WhiteClock "0:00:02"]
[BlackClock "0:00:04"]

1. d4 {[%clk 0:02:52]}  Nf6 {[%clk 0:02:59]} 2. Nc3 {[%clk 0:02:52]}  e6 {[%clk 0:02:54]} 3. a3 {[%clk 0:02:47]}  c5 {[%clk 0:02:49]} 4. Bg5 {[%clk 0:02:42]}  cxd4 {[%clk 0:02:43]} 5. Qxd4 {[%clk 0:02:42]}  Nc6 {[%clk 0:02:42]} 6. Qd2 {[%clk 0:02:40]}  h6 {[%clk 0:02:31]} 7. Bh4 {[%clk 0:02:39]}  d5 {[%clk 0:02:26]} 8. O-O-O {[%clk 0:02:32]}  d4 {[%clk 0:02:06]} 9. Nb5 {[%clk 0:02:28]}  e5 {[%clk 0:01:16]} 10. f4 {[%clk 0:02:11]}  g5 {[%clk 0:00:55]} 11. fxe5 {[%clk 0:01:58]}  Ne4 {[%clk 0:00:53]} 12. Qd3 {[%clk 0:01:56]}  Nc5 {[%clk 0:00:51]} 13. Qd2 {[%clk 0:01:04]}  gxh4 {[%clk 0:00:50]} 14. Nf3 {[%clk 0:01:04]}  Ne4 {[%clk 0:00:35]} 15. Qe1 {[%clk 0:00:41]}  Qb6 {[%clk 0:00:18]} 16. Nbxd4 {[%clk 0:00:41]}  Bc5 {[%clk 0:00:11]} 17. Nb3 {[%clk 0:00:30]}  Bf2 {[%clk 0:00:08]} 18. Rd8+ {[%clk 0:00:19]}  Qxd8 {[%clk 0:00:07]} 19. Qd1 {[%clk 0:00:17]}  Qxd1+ {[%clk 0:00:06]} 20. Kxd1 {[%clk 0:00:18]}  Be3 {[%clk 0:00:07]} 21. Ke1 {[%clk 0:00:14]}  Be6 {[%clk 0:00:07]} 22. Nfd2 {[%clk 0:00:10]}  Nxd2 {[%clk 0:00:05]} 23. Nxd2 {[%clk 0:00:11]}  O-O-O {[%clk 0:00:06]} 24. Ne4 {[%clk 0:00:11]}  Nd4 {[%clk 0:00:05]} 25. Kd1 {[%clk 0:00:08]}  Nb3+ {[%clk 0:00:04]} 26. Ke1 {[%clk 0:00:07]}  Na1 {[%clk 0:00:05]} 27. Nd6+ {[%clk 0:00:05]}  Rxd6 {[%clk 0:00:05]} 28. exd6 {[%clk 0:00:05]}  Nxc2+ {[%clk 0:00:05]} 29. Kd1 {[%clk 0:00:05]}  Bb3 {[%clk 0:00:06]} 30. g3 {[%clk 0:00:05]}  Rd8 {[%clk 0:00:05]} 31. Bh3+ {[%clk 0:00:04]}  Kb8 {[%clk 0:00:05]} 32. d7 {[%clk 0:00:05]}  Nd4+ {[%clk 0:00:04]} 33. Ke1 {[%clk 0:00:05]}  f5 {[%clk 0:00:05]} 34. Kf1 {[%clk 0:00:03]}  Rxd7 {[%clk 0:00:05]} 35. Bg2 {[%clk 0:00:02]}  Nc2 {[%clk 0:00:04]} 36. Bf3 {[%clk 0:00:02]}  h3 {[%clk 0:00:04]} 0-1


[Site "https://www.chess.com"]

[Event "Titled Tuesday Blitz February 14 Early 2023"]
[White "Zherebtsova, Alexandra"]
[Black "Ibadov, Dashgyn"]
[WhiteFideId "24129518"]
[BlackFideId "24107514"]
[WhiteElo "2155"]
[BlackElo "2391"]
[Result "0-1"]
[Round "09"]
[TimeControl "180+2"]
[Date "2023.02.14"]
[WhiteClock "0:01:24"]
[BlackClock "0:01:57"]

1. d4 {[%clk 0:02:58]}  Nf6 {[%clk 0:02:59]} 2. Nf3 {[%clk 0:02:57]}  d5 {[%clk 0:02:58]} 3. c4 {[%clk 0:02:56]}  e6 {[%clk 0:02:58]} 4. e3 {[%clk 0:02:56]}  c6 {[%clk 0:02:57]} 5. Nbd2 {[%clk 0:02:52]}  Nbd7 {[%clk 0:02:56]} 6. b3 {[%clk 0:02:52]}  Bd6 {[%clk 0:02:54]} 7. Bb2 {[%clk 0:02:51]}  O-O {[%clk 0:02:55]} 8. Bd3 {[%clk 0:02:51]}  b6 {[%clk 0:02:51]} 9. Ne5 {[%clk 0:02:50]}  Bb7 {[%clk 0:02:49]} 10. O-O {[%clk 0:02:49]}  c5 {[%clk 0:02:48]} 11. f4 {[%clk 0:02:49]}  cxd4 {[%clk 0:02:45]} 12. exd4 {[%clk 0:02:48]}  Ne4 {[%clk 0:02:43]} 13. Qe2 {[%clk 0:02:42]}  Ndf6 {[%clk 0:02:33]} 14. Ndf3 {[%clk 0:02:12]}  Qe7 {[%clk 0:02:32]} 15. Rac1 {[%clk 0:02:07]}  Ba3 {[%clk 0:02:31]} 16. Bxa3 {[%clk 0:01:56]}  Qxa3 {[%clk 0:02:32]} 17. Ng5 {[%clk 0:01:46]}  Rad8 {[%clk 0:02:09]} 18. Bb1 {[%clk 0:01:38]}  h6 {[%clk 0:02:00]} 19. Nxe4 {[%clk 0:01:35]}  Nxe4 {[%clk 0:02:01]} 20. f5 {[%clk 0:01:25]}  exf5 {[%clk 0:01:58]} 21. Rxf5 {[%clk 0:01:24]}  Qxc1+ {[%clk 0:01:57]} 0-1


[Site "https://www.chess.com"]

[Event "Titled Tuesday Blitz February 14 Early 2023"]
[White "Gimenez Aguirre, Alejo Ismael"]
[Black "Kanyamarala, Trisha"]
[WhiteFideId "32041667"]
[BlackFideId "45004722"]
[WhiteElo "2273"]
[BlackElo "2278"]
[Result "1-0"]
[Round "09"]
[TimeControl "180+2"]
[Date "2023.02.14"]
[WhiteClock "0:01:16"]
[BlackClock "0:01:02"]

1. e4 {[%clk 0:02:58]}  c5 {[%clk 0:02:59]} 2. Nf3 {[%clk 0:02:58]}  d6 {[%clk 0:02:58]} 3. d4 {[%clk 0:02:58]}  cxd4 {[%clk 0:02:59]} 4. Nxd4 {[%clk 0:02:59]}  Nf6 {[%clk 0:02:59]} 5. Nc3 {[%clk 0:02:59]}  Nc6 {[%clk 0:02:59]} 6. Bc4 {[%clk 0:02:59]}  e6 {[%clk 0:02:59]} 7. Be3 {[%clk 0:02:58]}  Be7 {[%clk 0:02:57]} 8. Bb3 {[%clk 0:02:59]}  O-O {[%clk 0:02:57]} 9. f3 {[%clk 0:02:59]}  a6 {[%clk 0:02:57]} 10. Qd2 {[%clk 0:03:00]}  Na5 {[%clk 0:02:53]} 11. g4 {[%clk 0:02:59]}  b5 {[%clk 0:02:53]} 12. O-O-O {[%clk 0:02:57]}  Nc4 {[%clk 0:02:52]} 13. Bxc4 {[%clk 0:02:56]}  bxc4 {[%clk 0:02:53]} 14. Nc6 {[%clk 0:02:57]}  Qc7 {[%clk 0:02:52]} 15. Nxe7+ {[%clk 0:02:56]}  Qxe7 {[%clk 0:02:53]} 16. Qxd6 {[%clk 0:02:55]}  Qb7 {[%clk 0:02:51]} 17. g5 {[%clk 0:02:34]}  Nd7 {[%clk 0:02:47]} 18. Rd4 {[%clk 0:02:24]}  Rb8 {[%clk 0:02:31]} 19. Nd1 {[%clk 0:02:23]}  Nb6 {[%clk 0:02:22]} 20. Qb4 {[%clk 0:02:14]}  a5 {[%clk 0:02:17]} 21. Qxa5 {[%clk 0:02:02]}  Ra8 {[%clk 0:02:16]} 22. Qb4 {[%clk 0:02:02]}  Rxa2 {[%clk 0:02:12]} 23. Rd6 {[%clk 0:01:58]}  Ra1+ {[%clk 0:02:03]} 24. Kd2 {[%clk 0:01:57]}  Na8 {[%clk 0:01:42]} 25. Qxb7 {[%clk 0:01:50]}  Bxb7 {[%clk 0:01:43]} 26. Bd4 {[%clk 0:01:44]}  Nc7 {[%clk 0:01:34]} 27. Rd7 {[%clk 0:01:38]}  Nb5 {[%clk 0:01:34]} 28. Bc5 {[%clk 0:01:34]}  Bc6 {[%clk 0:01:31]} 29. Bxf8 {[%clk 0:01:29]}  Bxd7 {[%clk 0:01:31]} 30. Bc5 {[%clk 0:01:29]}  Bc6 {[%clk 0:01:27]} 31. Re1 {[%clk 0:01:26]}  Rb1 {[%clk 0:01:24]} 32. Ne3 {[%clk 0:01:21]}  Rxb2 {[%clk 0:01:22]} 33. Nxc4 {[%clk 0:01:20]}  Ra2 {[%clk 0:01:22]} 34. Rb1 {[%clk 0:01:20]}  h6 {[%clk 0:01:12]} 35. gxh6 {[%clk 0:01:19]}  g6 {[%clk 0:01:11]} 36. Ne5 {[%clk 0:01:14]}  Be8 {[%clk 0:01:10]} 37. Ng4 {[%clk 0:01:15]}  Bc6 {[%clk 0:01:02]} 38. Nf6+ {[%clk 0:01:15]}  Kh8 {[%clk 0:01:02]} 39. Bf8 {[%clk 0:01:16]} 1-0


[Site "https://www.chess.com"]

[Event "Titled Tuesday Blitz February 14 Early 2023"]
[White "Mazibuko, Khanya"]
[Black "Novikov, Evgenij"]
[WhiteFideId "14321041"]
[BlackFideId "4125380"]
[WhiteElo "1913"]
[BlackElo "2276"]
[Result "0-1"]
[Round "09"]
[TimeControl "180+2"]
[Date "2023.02.14"]
[WhiteClock "0:00:34"]
[BlackClock "0:00:13"]

1. e4 {[%clk 0:03:00]}  c5 {[%clk 0:02:56]} 2. Nf3 {[%clk 0:03:00]}  d6 {[%clk 0:02:54]} 3. d4 {[%clk 0:02:52]}  cxd4 {[%clk 0:02:55]} 4. Nxd4 {[%clk 0:02:52]}  Nf6 {[%clk 0:02:55]} 5. Nc3 {[%clk 0:02:51]}  a6 {[%clk 0:02:55]} 6. Bc4 {[%clk 0:02:42]}  e6 {[%clk 0:02:53]} 7. Bb3 {[%clk 0:02:42]}  Be7 {[%clk 0:02:53]} 8. f4 {[%clk 0:02:23]}  O-O {[%clk 0:02:49]} 9. Qf3 {[%clk 0:02:19]}  Qc7 {[%clk 0:02:47]} 10. f5 {[%clk 0:02:15]}  e5 {[%clk 0:02:42]} 11. Nde2 {[%clk 0:02:15]}  b5 {[%clk 0:02:34]} 12. Bd5 {[%clk 0:02:15]}  Bb7 {[%clk 0:02:29]} 13. Bxb7 {[%clk 0:02:10]}  Qxb7 {[%clk 0:02:30]} 14. Bg5 {[%clk 0:02:09]}  b4 {[%clk 0:02:24]} 15. Bxf6 {[%clk 0:02:08]}  bxc3 {[%clk 0:02:14]} 16. Bxe7 {[%clk 0:02:08]}  cxb2 {[%clk 0:02:14]} 17. Rb1 {[%clk 0:02:09]}  Qxe7 {[%clk 0:02:10]} 18. Rxb2 {[%clk 0:02:09]}  Nc6 {[%clk 0:02:01]} 19. O-O {[%clk 0:02:07]}  Rfc8 {[%clk 0:01:49]} 20. c3 {[%clk 0:02:03]}  Na5 {[%clk 0:01:46]} 21. Qd3 {[%clk 0:01:46]}  Nc4 {[%clk 0:01:36]} 22. Rb4 {[%clk 0:01:45]}  Qc7 {[%clk 0:01:18]} 23. f6 {[%clk 0:01:44]}  g6 {[%clk 0:00:59]} 24. Rfb1 {[%clk 0:01:23]}  Qc5+ {[%clk 0:00:49]} 25. Kh1 {[%clk 0:01:23]}  Na5 {[%clk 0:00:24]} 26. Rb6 {[%clk 0:01:12]}  Nc6 {[%clk 0:00:24]} 27. Rxa6 {[%clk 0:00:58]}  Rxa6 {[%clk 0:00:20]} 28. Qxa6 {[%clk 0:00:58]}  Nd8 {[%clk 0:00:20]} 29. Rd1 {[%clk 0:00:54]}  Ne6 {[%clk 0:00:17]} 30. Qxd6 {[%clk 0:00:50]}  Qe3 {[%clk 0:00:16]} 31. Qd7 {[%clk 0:00:38]}  Rf8 {[%clk 0:00:15]} 32. Qd4 {[%clk 0:00:34]}  exd4 {[%clk 0:00:13]} 0-1


[Site "https://www.chess.com"]

[Event "Titled Tuesday Blitz February 14 Early 2023"]
[White "Fan_Of_Chucky"]
[Black "Turzo, Attila"]
[BlackFideId "704954"]
[WhiteElo "2323"]
[BlackElo "2279"]
[Result "0-1"]
[Round "09"]
[TimeControl "180+2"]
[Date "2023.02.14"]
[WhiteClock "0:01:07"]
[BlackClock "0:01:34"]

1. d4 {[%clk 0:03:00]}  Nf6 {[%clk 0:02:59]} 2. c4 {[%clk 0:03:01]}  g6 {[%clk 0:02:59]} 3. Nf3 {[%clk 0:03:01]}  Bg7 {[%clk 0:02:57]} 4. g3 {[%clk 0:03:01]}  O-O {[%clk 0:02:56]} 5. Bg2 {[%clk 0:03:02]}  c6 {[%clk 0:02:57]} 6. O-O {[%clk 0:03:02]}  d5 {[%clk 0:02:57]} 7. cxd5 {[%clk 0:03:03]}  cxd5 {[%clk 0:02:57]} 8. Ne5 {[%clk 0:03:03]}  b6 {[%clk 0:02:48]} 9. Nc3 {[%clk 0:02:54]}  Bb7 {[%clk 0:02:48]} 10. a4 {[%clk 0:02:47]}  Nc6 {[%clk 0:02:44]} 11. Nxc6 {[%clk 0:02:43]}  Bxc6 {[%clk 0:02:44]} 12. b4 {[%clk 0:02:40]}  Ne4 {[%clk 0:02:38]} 13. Bb2 {[%clk 0:02:35]}  Nxc3 {[%clk 0:02:36]} 14. Bxc3 {[%clk 0:02:36]}  Rc8 {[%clk 0:02:30]} 15. Qb3 {[%clk 0:02:27]}  Bb7 {[%clk 0:02:23]} 16. e3 {[%clk 0:02:24]}  e6 {[%clk 0:02:15]} 17. b5 {[%clk 0:02:20]}  Qd7 {[%clk 0:01:59]} 18. a5 {[%clk 0:01:58]}  Rc4 {[%clk 0:01:55]} 19. a6 {[%clk 0:01:48]}  Ba8 {[%clk 0:01:46]} 20. Bd2 {[%clk 0:01:47]}  Rfc8 {[%clk 0:01:46]} 21. Rfc1 {[%clk 0:01:46]}  Bf8 {[%clk 0:01:44]} 22. Bf1 {[%clk 0:01:43]}  e5 {[%clk 0:01:35]} 23. Rc2 {[%clk 0:01:07]}  Rxc2 {[%clk 0:01:34]} 0-1


[Site "https://www.chess.com"]